bitfinex/quotes_SOLUSD_20240718
["timestamp","ask_amount","ask_price","bid_price","bid_amount"]
[1721286010704,1.56238125,160.06,160.02,12.03]
[1721286010901,1.56238125,160.06,160.03,12.03]
[1721286011183,1.56238125,160.06,159.97,0.17]
[1721286011184,1.56238125,160.06,160.02,12.03]
[1721286011779,12.03,160.05,160.0,12.03]
[1721286012086,1.5625397,160.04,160.0,12.03]
[1721286012289,1.5625397,160.04,160.01,12.03]
[1721286012698,1.5625397,160.04,160.0,12.03]
[1721286013277,1.5625397,160.04,160.01,12.03]
[1721286013480,1.56240674,160.03,160.01,12.03]
[1721286013674,1.56240449,160.06,160.01,12.03]
[1721286013906,1.56240449,160.06,160.02,12.03]
[1721286014482,1.56240449,160.06,160.03,12.03]
[1721286015516,1.56240449,160.06,160.04,12.03]
[1721286016277,1.56240449,160.06,160.05,12.03]
[1721286016481,6.4212,160.08,160.05,12.03]
[1721286016482,1.56206787,160.07,160.05,12.03]
[1721286016793,1.56206787,160.07,160.06,12.03]
[1721286017711,1.56206787,160.07,160.0,48.12]
[1721286017883,1.56198633,160.1,160.01,56.58951184]
[1721286018208,1.56198633,160.1,160.07,12.03]
[1721286018416,1.56198633,160.1,160.01,45.0]
[1721286018706,1.56198633,160.1,160.05,12.03]
[1721286019087,1.56198633,160.1,160.06,12.03]
[1721286021317,17.62767547,160.11,160.09,12.03]
[1721286021614,1.56167254,160.1,160.09,12.03]
[1721286021821,1.56167254,160.1,160.06,12.03]
[1721286024516,1.56167254,160.1,160.0,93.12]
[1721286024816,12.03,160.09,160.04,12.03]
[1721286024990,1.56209328,160.08,160.04,12.03]
[1721286025191,1.56209247,160.07,160.04,12.03]
[1721286026309,1.56209066,160.08,160.05,12.03]
[1721286026513,1.56209066,160.08,160.06,12.03]
[1721286026807,1.56209066,160.08,160.01,1.24967252]
[1721286026808,1.56192443,160.1,160.07,12.03]
[1721286027015,1.56192443,160.1,160.02,10.0]
[1721286027016,1.56192443,160.1,160.03,1.24942701]
[1721286027192,1.56192443,160.1,160.09,12.03]
[1721286027716,1.56167441,160.1,160.09,12.03]
[1721286028022,1.56169618,160.1,160.09,12.03]
[1721286028885,1.56169618,160.1,160.08,12.03]
[1721286029814,1.56169618,160.1,160.07,12.03]
[1721286030995,1.56169618,160.1,159.98,18.16278464]
[1721286030996,13.59169618,160.1,159.98,18.16278464]
[1721286031202,12.03,160.09,160.04,12.03]
[1721286031411,1.56207455,160.08,160.04,12.03]
[1721286031726,1.5621497,160.07,160.02,12.03]
[1721286032211,1.5621497,160.07,159.98,18.16278464]
[1721286032616,25.0161,160.1,159.98,8.16278464]
[1721286032800,1.73224602,160.09,159.98,8.16278464]
[1721286033004,26.74874602,160.09,159.98,8.16278464]
[1721286033205,6.4249,160.08,159.98,8.16278464]
[1721286033518,1.5623069,160.07,159.98,8.16278464]
[1721286033722,20.3323069,160.07,159.98,8.16278464]
[1721286033923,20.3323069,160.07,159.97,39.1156]
[1721286034429,20.3323069,160.07,159.97,24.02]
[1721286034640,34.5393,160.06,159.95,6.48062489]
[1721286034838,25.19,160.04,159.95,6.48062489]
[1721286035143,1.56275356,160.03,159.94,8.16278464]
[1721286035512,1.56275356,160.03,159.93,30.50826795]
[1721286035513,1.56275356,160.03,159.93,6.48826795]
[1721286035711,18.94,160.02,159.9,24.02]
[1721286035922,18.77,160.0,159.89,40.0275]
[1721286036224,1.56312748,159.99,159.9,6.4859795]
[1721286036428,6.1604,159.97,159.89,24.02]
[1721286036726,1.5632346,159.96,159.88,8.16278464]
[1721286037043,16.3067,159.94,159.86,6.48676387]
[1721286037209,1.56356521,159.93,159.86,6.48676387]
[1721286037411,1.56363784,159.92,159.86,6.48676387]
[1721286037743,1.56363784,159.92,159.84,32.18278464]
[1721286038342,1.56363784,159.92,159.85,1.25095701]
[1721286038533,1.56363784,159.92,159.86,1.25094018]
[1721286038737,1.56363784,159.92,159.85,8.16278464]
[1721286039113,1.56363784,159.92,159.86,1.25059642]
[1721286039650,16.3067,159.94,159.85,8.16278464]
[1721286039651,1.56361142,159.91,159.85,8.16278464]
[1721286039818,1.56356711,159.93,159.85,8.16278464]
[1721286040013,1.56360077,159.92,159.85,8.16278464]
[1721286040632,6.4492,159.91,159.83,6.48911198]
[1721286040819,1.56395665,159.9,159.81,24.02]
[1721286041022,1.56403031,159.89,159.81,24.02]
[1721286042448,34.6824,159.88,159.78,24.02]
[1721286042749,34.6824,159.88,159.77,6.48942362]
[1721286042750,6.58,159.86,159.77,6.48942362]
[1721286043043,1.56442576,159.85,159.77,6.48942362]
[1721286043419,18.94,159.84,159.72,24.02]
[1721286043747,18.94,159.84,159.73,6.49110821]
[1721286043748,1.56468952,159.83,159.73,6.49110821]
[1721286043921,1.56468851,159.82,159.73,6.49110821]
[1721286044829,1.56468851,159.82,159.74,1.25185107]
[1721286045640,1.56468396,159.83,159.73,16.49110821]
[1721286045866,25.35,159.86,159.75,34.02]
[1721286045867,1.56449122,159.82,159.75,34.02]
[1721286046039,1.56448877,159.85,159.76,1.25159101]
[1721286046243,1.56448877,159.85,159.77,1.25160693]
[1721286046850,1.56448877,159.85,159.75,24.02]
[1721286047146,1.56448877,159.85,159.76,1.25164399]
[1721286047437,1.56448877,159.85,159.78,34.02]
[1721286047638,1.56448877,159.85,159.79,1.25136165]
[1721286047830,1.56448877,159.85,159.78,24.02]
[1721286048022,1.56448877,159.85,159.79,1.25138168]
[1721286048338,1.56448877,159.85,159.78,24.02]
[1721286048339,1.56448877,159.85,159.8,1.25135577]
[1721286048724,1.56448877,159.85,159.78,24.02]
[1721286049115,1.56448877,159.85,159.79,1.25137274]
[1721286049315,1.56421593,159.85,159.79,46.25137274]
[1721286049513,1.56421593,159.85,159.78,34.02]
[1721286049514,1.56421593,159.85,159.78,24.02]
[1721286049931,1.56421593,159.85,159.79,1.25142085]
[1721286050136,1.56421593,159.85,159.8,1.25133263]
[1721286050449,1.56421593,159.85,159.78,24.02]
[1721286050746,1.56421593,159.85,159.75,24.02]
[1721286050918,18.94,159.84,159.76,1.25173073]
[1721286051117,1.56466554,159.83,159.76,1.25173073]
[1721286051319,1.56462915,159.82,159.77,1.25170332]
[1721286052240,63.77,159.85,159.75,24.02]
[1721286052419,63.77,159.85,159.75,25.27165161]
[1721286052420,1.73466441,159.84,159.75,25.27165161]
[1721286053439,1.73466441,159.84,159.75,24.02]
[1721286054722,34.2986,159.83,159.73,6.49110821]
[1721286054935,46.56482755,159.82,159.73,6.49110821]
[1721286055523,65.33482755,159.82,159.73,6.49110821]
[1721286056038,65.33482755,159.82,159.74,1.25188545]
[1721286056224,1.56482755,159.82,159.74,1.25188545]
[1721286057125,1.56482755,159.82,159.74,25.27188545]
[1721286059658,1.56453055,159.83,159.75,10.0]
[1721286059955,1.56433396,159.85,159.77,24.02]
[1721286060152,1.56433396,159.85,159.78,1.25152923]
[1721286060548,1.56433396,159.85,159.77,24.02]
[1721286060746,1.56425792,159.85,159.78,11.25140634]
[1721286060950,1.56425792,159.85,159.77,24.02]
[1721286061458,1.56425792,159.85,159.78,1.25142672]
[1721286061638,1.56425792,159.85,159.78,11.25142672]
[1721286062128,8.14415686,159.86,159.78,11.25142672]
[1721286063354,6.58,159.86,159.8,34.02]
[1721286063542,6.58,159.86,159.81,1.25113439]
[1721286063735,7.8085506,159.91,159.82,10.0]
[1721286064057,26.5785506,159.91,159.8,24.02]
[1721286064440,26.5785506,159.91,159.77,24.02]
[1721286064646,18.77,159.89,159.78,0.17]
[1721286064845,1.56420459,159.88,159.78,0.17]
[1721286065445,65.33420459,159.88,159.77,24.02]
[1721286065638,6.633,159.86,159.77,24.02]
[1721286065961,65.50442829,159.85,159.77,25.27154263]
[1721286066157,46.73442829,159.85,159.78,1.25162366]
[1721286066469,46.73442829,159.85,159.77,24.02]
[1721286067265,1.56442829,159.85,159.78,1.2516237]
[1721286067962,1.56442829,159.85,159.77,24.02]
[1721286068156,1.56442829,159.85,159.78,1.25155341]
[1721286068659,1.56442829,159.85,159.77,34.02]
[1721286068857,1.56442829,159.85,159.77,24.02]
[1721286069046,1.56442829,159.85,159.77,34.02]
[1721286069460,8.19721132,159.86,159.78,1.25136906]
[1721286069668,8.19721132,159.86,159.78,46.25136906]
[1721286069860,8.19721132,159.86,159.79,10.17]
[1721286070165,8.19721132,159.86,159.8,1.25125327]
[1721286070353,6.633,159.86,159.81,10.17]
[1721286070552,6.633,159.86,159.82,1.25107992]
[1721286070755,6.633,159.86,159.83,1.25108144]
[1721286070954,21.89,159.91,159.83,1.25108144]
[1721286071152,1.56372716,159.9,159.83,1.25108144]
[1721286071351,1.56367672,159.9,159.85,24.02]
[1721286071748,1.56363833,159.89,159.85,24.02]
[1721286071953,1.56363833,159.89,159.83,1.25108706]
[1721286072266,1.56363833,159.89,159.81,0.17]
[1721286072267,1.56363833,159.89,159.78,10.0]
[1721286072446,34.0012,159.87,159.75,6.49128133]
[1721286072650,1.56444619,159.86,159.75,6.49128133]
[1721286072857,1.56439896,159.85,159.75,6.49128133]
[1721286073672,20.33439896,159.85,159.75,6.49128133]
[1721286073845,6.6355,159.84,159.75,6.49128133]
[1721286074044,1.5646103,159.83,159.76,1.25168824]
[1721286074370,1.56459243,159.82,159.77,1.25167395]
[1721286075049,1.56445172,159.83,159.77,1.25167395]
[1721286075251,1.56445172,159.83,159.77,25.27167395]
[1721286075457,6.6355,159.84,159.77,25.27167395]
[1721286075770,1.56431293,159.83,159.77,25.27167395]
[1721286076267,1.56431293,159.83,159.77,24.02]
[1721286076471,1.56433213,159.82,159.77,24.02]
[1721286076844,6.6355,159.84,159.78,1.25157459]
[1721286077059,1.56425894,159.83,159.78,1.25157459]
[1721286077439,1.56433269,159.82,159.77,24.02]
[1721286078245,1.56433269,159.82,159.76,1.25158621]
[1721286078648,1.56433269,159.82,159.75,6.49128133]
[1721286079489,1.56433269,159.82,159.76,1.2516719]
[1721286080071,1.56433269,159.82,159.75,7.74295014]
[1721286080373,1.56433269,159.82,159.75,1.25166881]
[1721286081175,1.56470086,159.83,159.75,1.25166881]
[1721286081375,1.56470086,159.83,159.76,0.34]
[1721286081580,6.6355,159.84,159.77,25.27146055]
[1721286081876,6.6355,159.84,159.79,10.0]
[1721286082180,6.6355,159.84,159.8,25.27121143]
[1721286082744,6.6355,159.84,159.78,1.25123693]
[1721286082949,1.56430019,159.83,159.78,1.25123693]
[1721286083674,6.6355,159.84,159.78,1.25123693]
[1721286084178,6.6355,159.84,159.79,10.17]
[1721286084365,6.6355,159.84,159.79,0.17]
[1721286084671,6.6355,159.84,159.78,46.42132677]
[1721286084877,6.6355,159.84,159.79,0.17]
[1721286085064,6.6355,159.84,159.79,1.251262]
[1721286085271,6.6355,159.84,159.8,1.25125979]
[1721286085471,6.6355,159.84,159.77,24.02]
[1721286085671,6.6355,159.84,159.78,1.25135444]
[1721286086470,6.6355,159.84,159.77,34.02]
[1721286088576,1.56418583,159.83,159.77,24.02]
[1721286090181,1.56436457,159.82,159.77,24.02]
[1721286090479,1.56436457,159.82,159.74,10.0]
[1721286090480,1.56436457,159.82,159.74,24.02]
[1721286092073,1.56436457,159.82,159.75,1.25174187]
[1721286092463,16.5277,159.81,159.75,1.25174187]
[1721286092774,18.0924244,159.81,159.75,1.25174187]
[1721286092976,16.5277,159.81,159.75,1.25174187]
[1721286095364,16.5277,159.81,159.75,56.25174187]
[1721286095588,16.5277,159.81,159.75,46.25174187]
[1721286095758,16.5277,159.81,159.75,45.0]
[1721286096379,16.5277,159.81,159.74,30.85209601]
[1721286097862,16.5277,159.81,159.75,1.25159608]
[1721286098065,16.5277,159.81,159.77,10.0]
[1721286098417,6.6355,159.84,159.78,1.25142784]
[1721286098683,6.6355,159.84,159.78,46.25142784]
[1721286099790,6.6355,159.84,159.8,34.02]
[1721286099978,16.4855,159.85,159.81,1.25118159]
[1721286100386,16.4855,159.85,159.8,24.02]
[1721286100974,16.4855,159.85,159.81,1.2511699]
[1721286101693,1.56396235,159.84,159.76,10.0]
[1721286101874,1.56396235,159.84,159.76,24.02]
[1721286102191,1.56396235,159.84,159.77,1.2515628]
[1721286102399,1.56396235,159.84,159.76,24.02]
[1721286102582,6.5589,159.83,159.77,1.25159852]
[1721286102909,1.56450567,159.82,159.76,24.02]
[1721286103568,1.56450567,159.82,159.77,1.25160207]
[1721286105381,1.56450567,159.82,159.76,24.02]
[1721286106095,1.56450567,159.82,159.77,1.25160087]
[1721286107499,6.5589,159.83,159.77,1.25160087]
[1721286108783,1.56430367,159.82,159.77,1.25160087]
[1721286109303,1.56430367,159.82,159.76,24.02]
[1721286109470,1.56430367,159.82,159.74,6.48098597]
[1721286109686,1.56430367,159.82,159.75,1.25171052]
[1721286110085,1.56430367,159.82,159.74,6.48098597]
[1721286110617,1.56430367,159.82,159.74,7.73278096]
[1721286111390,1.56430367,159.82,159.74,6.48098597]
[1721286111590,1.56430367,159.82,159.74,7.73284181]
[1721286111995,1.56430367,159.82,159.74,6.48098597]
[1721286112198,20.33430367,159.82,159.74,7.73284116]
[1721286112411,1.56430367,159.82,159.74,7.73284116]
[1721286112724,15.571,159.81,159.74,6.48098597]
[1721286112906,1.56482004,159.8,159.73,24.02]
[1721286113217,1.56482004,159.79,159.73,24.02]
[1721286114314,1.56481932,159.78,159.73,24.02]
[1721286114511,1.56482026,159.8,159.73,24.02]
[1721286114716,1.56481942,159.79,159.73,24.02]
[1721286115215,1.56481942,159.79,159.71,6.48545907]
[1721286115216,6.0848,159.78,159.71,6.48545907]
[1721286115422,1.56504,159.77,159.71,6.48545907]
[1721286115581,1.56504523,159.76,159.7,24.02]
[1721286116004,1.56504523,159.76,159.68,23.83600905]
[1721286116203,1.56504523,159.76,159.68,13.83600905]
[1721286116415,1.56504523,159.76,159.69,1.25212182]
[1721286116616,1.56514859,159.75,159.69,1.25212182]
[1721286116796,1.5651495,159.77,159.68,13.83600905]
[1721286116996,1.56515038,159.76,159.68,13.83600905]
[1721286117316,16.4518,159.75,159.69,1.25212041]
[1721286117518,18.01713756,159.75,159.69,1.25212041]
[1721286117820,16.4518,159.75,159.69,1.25212041]
[1721286118186,18.01697178,159.75,159.69,1.25212041]
[1721286118511,16.4518,159.75,159.69,1.25212041]
[1721286118913,16.4518,159.75,159.7,34.02]
[1721286119122,6.0848,159.78,159.71,1.25193168]
[1721286119301,7.64963282,159.78,159.71,1.25193168]
[1721286119487,7.64963282,159.78,159.71,1.2520638]
[1721286119818,7.64963282,159.78,159.71,1.25211063]
[1721286120704,7.64963282,159.78,159.68,47.85600905]
[1721286120946,7.64963282,159.78,159.69,52.68774436]
[1721286121097,7.64963282,159.78,159.69,45.17]
[1721286121808,7.64963282,159.78,159.7,18.93919805]
[1721286122019,7.64963282,159.78,159.71,46.2518625]
[1721286122230,7.64963282,159.78,159.72,24.02]
[1721286122413,7.64963282,159.78,159.73,1.25185349]
[1721286122615,7.64963282,159.78,159.74,1.25185349]
[1721286122907,6.0848,159.78,159.74,1.25185349]
[1721286123106,21.9203,159.84,159.76,10.0]
[1721286123315,21.9203,159.84,159.78,24.02]
[1721286123627,21.9203,159.84,159.79,1.25132158]
[1721286123795,21.9203,159.84,159.8,1.25132519]
[1721286123995,21.852,159.88,159.81,24.02]
[1721286124311,21.852,159.88,159.82,1.25107865]
[1721286124516,21.852,159.88,159.83,1.25100033]
[1721286125411,21.852,159.88,159.84,24.02]
[1721286125620,6.583,159.88,159.85,1.25091244]
[1721286125945,22.7546,159.92,159.86,1.25083931]
[1721286126530,22.7546,159.92,159.86,11.25083931]
[1721286126735,6.5692,159.92,159.87,70.44061883]
[1721286126937,21.5247,159.96,159.89,10.0]
[1721286127228,21.5247,159.96,159.91,10.0]
[1721286127441,6.15,159.96,159.92,1.25027468]
[1721286127729,6.15,159.96,159.93,1.25024773]
[1721286128730,6.0415,160.0,159.95,10.0]
[1721286128928,6.0415,160.0,159.94,0.34]
[1721286129134,6.0415,160.0,159.93,64.02]
[1721286129135,7.60405741,160.0,159.93,54.02]
[1721286130311,7.60405741,160.0,159.94,1.25022504]
[1721286131433,26.37405741,160.0,159.93,30.0]
[1721286131933,26.37405741,160.0,159.91,1.2504958]
[1721286131934,45.0,159.99,159.91,1.2504958]
[1721286132102,1.5631023,159.98,159.91,1.2504958]
[1721286132307,1.5631023,159.98,159.91,1.25051586]
[1721286133713,1.56297402,159.97,159.91,1.25051586]
[1721286134039,1.56300553,159.99,159.91,1.25051586]
[1721286134214,1.56295791,159.98,159.91,1.25051586]
[1721286135142,1.56299571,159.97,159.91,1.25051586]
[1721286135620,1.56299464,159.99,159.9,24.02]
[1721286135827,1.56303497,159.98,159.91,1.25042798]
[1721286136511,1.56303497,159.98,159.9,24.02]
[1721286136711,24.8115,160.0,159.91,1.25039678]
[1721286136932,1.5630049,159.99,159.91,1.25039678]
[1721286137141,1.563005,159.98,159.91,1.25039678]
[1721286137608,1.563005,159.98,159.9,24.02]
[1721286138422,1.563005,159.98,159.87,24.02]
[1721286139028,18.77,159.96,159.87,24.02]
[1721286139225,1.5635008,159.95,159.84,24.02]
[1721286139436,65.3335008,159.95,159.84,24.02]
[1721286139826,65.3335008,159.95,159.85,1.25086609]
[1721286140144,65.3335008,159.95,159.86,1.25086489]
[1721286140315,65.3335008,159.95,159.84,24.02]
[1721286140316,15.4518,159.92,159.84,24.02]
[1721286140520,1.56375123,159.91,159.84,24.02]
[1721286140836,1.56375123,159.91,159.81,37.8562426]
[1721286141743,1.56375123,159.91,159.82,1.25105269]
[1721286142046,1.56375123,159.91,159.83,1.25105269]
[1721286142418,1.56375123,159.91,159.81,37.8562426]
[1721286142838,1.56375123,159.91,159.82,1.25105629]
[1721286143234,1.56375123,159.91,159.83,1.25105215]
[1721286143460,1.56375123,159.91,159.81,37.8562426]
[1721286144122,6.2525,159.9,159.81,37.8562426]
[1721286144326,1.56390202,159.89,159.81,37.8562426]
[1721286144718,1.56390202,159.89,159.81,30.50881323]
[1721286144948,1.56390202,159.89,159.82,1.25122679]
[1721286148240,1.56390202,159.89,159.83,1.25122226]
[1721286149336,1.56390202,159.89,159.81,24.02]
[1721286150247,1.56390202,159.89,159.78,30.5461678]
[1721286151226,16.0001,159.88,159.78,30.5461678]
[1721286151434,6.6096,159.86,159.78,30.5461678]
[1721286151736,1.56421137,159.85,159.78,24.02]
[1721286152634,1.56421137,159.85,159.79,1.25134703]
[1721286152837,1.56421137,159.85,159.8,1.25133517]
[1721286153350,1.56421137,159.85,159.78,24.02]
[1721286155070,1.56421137,159.85,159.79,1.25146804]
[1721286155361,1.56421137,159.85,159.8,1.25133846]
[1721286155548,1.56421137,159.85,159.78,24.02]
[1721286156167,1.56421137,159.85,159.79,1.25141652]
[1721286156351,1.56421137,159.85,159.78,24.02]
[1721286156551,15.9525,159.84,159.77,6.52191913]
[1721286156753,1.56448777,159.83,159.75,24.02]
[1721286156977,1.5645081,159.82,159.75,24.02]
[1721286158244,1.5645081,159.82,159.75,25.27173496]
[1721286158447,6.2542,159.81,159.75,24.02]
[1721286158644,1.56464713,159.8,159.75,24.02]
[1721286159042,1.56464697,159.79,159.74,6.52436245]
[1721286159368,1.56464697,159.79,159.71,7.34742937]
[1721286159369,16.294,159.78,159.71,31.36742937]
[1721286159755,1.56475611,159.77,159.71,31.36742937]
[1721286160449,1.56475611,159.77,159.72,1.25192191]
[1721286160656,16.294,159.78,159.72,1.25192191]
[1721286161161,16.294,159.78,159.73,24.02]
[1721286161344,6.2542,159.81,159.76,24.02]
[1721286161546,6.2542,159.81,159.77,1.25155188]
[1721286162542,1.56435859,159.8,159.73,7.34742937]
[1721286162885,1.56435859,159.8,159.74,25.27171905]
[1721286163944,1.56435859,159.8,159.75,1.2517171]
[1721286164546,1.56464637,159.79,159.74,24.02]
[1721286164959,1.56464637,159.79,159.71,25.2717171]
[1721286165470,6.2542,159.81,159.71,25.2717171]
[1721286165658,1.56483703,159.8,159.71,32.61914647]
[1721286165846,1.5648691,159.79,159.71,32.61914647]
[1721286166967,6.2542,159.81,159.71,32.61914647]
[1721286167274,1.56484908,159.8,159.71,32.61914647]
[1721286167477,1.56485139,159.79,159.71,32.61914647]
[1721286168469,6.2542,159.81,159.71,32.61914647]
[1721286168662,1.56485125,159.8,159.71,32.61914647]
[1721286168862,1.56492131,159.79,159.71,32.61914647]
[1721286171766,1.56492131,159.79,159.71,25.2717171]
[1721286171945,1.56492131,159.79,159.71,24.02]
[1721286172574,6.2317,159.77,159.7,6.52451037]
[1721286172751,1.5651997,159.76,159.68,24.02]
[1721286174055,16.1616,159.74,159.67,7.33954623]
[1721286174261,1.56563554,159.73,159.67,7.33954623]
[1721286174457,65.50563554,159.73,159.67,0.8180857]
[1721286175963,25.0667,159.72,159.67,0.8180857]
[1721286176180,1.56578433,159.71,159.67,0.8180857]
[1721286176387,1.56578404,159.7,159.67,0.8180857]
[1721286178554,41.4649,159.69,159.6,6.52615977]
[1721286178781,41.4649,159.69,159.6,25.27289767]
[1721286178782,1.56612209,159.68,159.6,25.27289767]
[1721286178977,1.56608134,159.67,159.61,1.25289767]
[1721286179179,1.56609405,159.68,159.61,1.25289767]
[1721286179381,1.56593368,159.68,159.61,1.25289767]
[1721286179558,1.56593368,159.67,159.61,1.25289767]
[1721286179960,1.56593368,159.67,159.6,24.02]
[1721286180172,1.56593368,159.67,159.61,1.25289548]
[1721286180484,1.56593368,159.67,159.6,24.02]
[1721286181777,1.56593368,159.67,159.61,1.25294147]
[1721286181984,1.56600891,159.66,159.61,1.25294147]
[1721286182184,1.56601347,159.68,159.61,1.25294147]
[1721286182386,1.56597343,159.67,159.61,1.25294147]
[1721286182879,22.5249,159.69,159.61,1.25294147]
[1721286183182,22.5249,159.69,159.63,24.02]
[1721286183384,22.5249,159.69,159.64,1.25248122]
[1721286183575,22.5249,159.69,159.65,1.25248216]
[1721286184085,1.56560153,159.76,159.66,24.02]
[1721286184086,16.3803,159.73,159.66,24.02]
[1721286184262,16.3803,159.73,159.67,1.25224299]
[1721286184263,17.94560374,159.73,159.67,1.25224299]
[1721286184463,16.3803,159.73,159.68,1.25225862]
[1721286184681,16.3803,159.73,159.69,24.02]
[1721286184904,16.3803,159.73,159.7,1.25215539]
[1721286185083,16.3803,159.73,159.7,1.25212479]
[1721286185283,6.5544,159.74,159.71,1.25212391]
[1721286185497,6.5544,159.74,159.69,24.02]
[1721286186200,6.5544,159.74,159.7,1.25203886]
[1721286186404,15.5814,159.77,159.7,45.0]
[1721286186602,17.14624197,159.77,159.7,45.0]
[1721286186784,15.5814,159.77,159.72,24.02]
[1721286186982,6.1328,159.78,159.72,24.02]
[1721286187182,6.1328,159.78,159.75,24.02]
[1721286187407,6.1328,159.78,159.72,24.02]
[1721286187578,1.56460539,159.77,159.72,24.02]
[1721286187975,6.1328,159.78,159.72,24.02]
[1721286187976,7.69764437,159.78,159.73,1.2518755]
[1721286188179,6.1328,159.78,159.74,1.25185294]
[1721286188410,1.56481618,159.77,159.72,24.02]
[1721286188706,7.69773261,159.78,159.73,1.25194609]
[1721286189004,7.69773261,159.78,159.74,1.25185731]
[1721286189407,6.1328,159.78,159.74,1.25185731]
[1721286189579,6.1328,159.78,159.72,24.02]
[1721286189777,1.56484264,159.77,159.72,24.02]
[1721286190000,1.56484264,159.76,159.72,24.02]
[1721286190200,1.5649659,159.77,159.72,24.02]
[1721286190383,1.56497716,159.76,159.72,24.02]
[1721286190702,1.56497522,159.77,159.72,24.02]
[1721286191205,1.56497522,159.77,159.73,1.25195882]
[1721286191407,1.56493907,159.76,159.72,24.02]
[1721286191577,1.56493907,159.76,159.69,24.02]
[1721286193589,24.9637,159.74,159.66,24.02]
[1721286193786,1.56564037,159.73,159.65,1.25251229]
[1721286194806,1.56564037,159.73,159.66,24.02]
[1721286195013,1.56564037,159.73,159.67,1.25239568]
[1721286195196,1.56564037,159.73,159.68,1.25239881]
[1721286195397,1.56564037,159.73,159.67,1.25234045]
[1721286195600,1.56564037,159.73,159.67,1.25243245]
[1721286195804,1.56564037,159.73,159.68,1.25243245]
[1721286196201,1.56564037,159.73,159.67,1.25233999]
[1721286196508,6.1937,159.74,159.68,1.25237947]
[1721286196891,7.75882924,159.74,159.68,1.25237947]
[1721286197091,7.75882924,159.74,159.66,24.19]
[1721286197309,7.75882924,159.74,159.67,0.17]
[1721286198423,1.56519416,159.73,159.66,24.02]
[1721286199797,1.56519416,159.73,159.64,6.51455196]
[1721286200209,1.56519416,159.73,159.65,1.25250787]
[1721286200913,1.56519416,159.73,159.64,6.51455196]
[1721286201504,18.77,159.71,159.64,6.51455196]
[1721286201702,18.77,159.71,159.59,43.86256078]
[1721286201703,1.56593622,159.7,159.6,24.02]
[1721286202009,46.56593622,159.7,159.61,1.25274669]
[1721286202390,65.33593622,159.7,159.61,1.25274669]
[1721286202720,6.4149,159.69,159.6,30.53997572]
[1721286202900,1.56598666,159.68,159.61,1.25278933]
[1721286203104,1.56595328,159.67,159.61,1.25278933]
[1721286203623,1.56594696,159.68,159.61,1.25278933]
[1721286204808,6.4149,159.69,159.63,24.02]
[1721286205116,6.4149,159.69,159.64,1.2525096]
[1721286205297,6.4149,159.69,159.64,1.25251943]
[1721286205995,6.4149,159.69,159.65,1.25250996]
[1721286209204,16.3866,159.72,159.66,24.02]
[1721286209399,16.3866,159.72,159.67,1.25224406]
[1721286209607,17.951971,159.72,159.66,24.02]
[1721286209813,16.3866,159.72,159.66,25.27229821]
[1721286211809,16.3866,159.72,159.67,10.0]
[1721286212128,6.6664,159.73,159.69,24.02]
[1721286212306,6.6664,159.73,159.7,1.25211375]
[1721286212508,6.6664,159.73,159.71,1.25211378]
[1721286212905,6.6664,159.73,159.69,24.02]
[1721286213128,6.6664,159.73,159.7,1.25211742]
[1721286213428,6.6664,159.73,159.69,24.02]
[1721286213934,6.6664,159.73,159.7,1.25164837]
[1721286214110,6.6664,159.73,159.69,24.02]
[1721286217432,6.6664,159.73,159.7,1.25210559]
[1721286218026,6.6664,159.73,159.69,24.02]
[1721286219631,6.6664,159.73,159.7,1.25223442]
[1721286220334,6.6664,159.73,159.69,24.02]
[1721286221334,6.6664,159.73,159.7,1.25223434]
[1721286222034,8.231596,159.73,159.66,1.2521568]
[1721286222225,8.231596,159.73,159.63,29.51575889]
[1721286222440,8.231596,159.73,159.64,31.54011779]
[1721286222749,8.231596,159.73,159.65,8.77254748]
[1721286222930,8.231596,159.73,159.64,24.02]
[1721286224224,8.231596,159.73,159.65,8.77221348]
[1721286224419,8.231596,159.73,159.65,1.25240873]
[1721286224913,6.6664,159.73,159.64,24.02]
[1721286225118,6.6664,159.73,159.65,7.5191434]
[1721286226073,6.6664,159.73,159.66,1.25234766]